bitfinex-derivatives/quotes_SOLF0:USTF0_20260226
["timestamp","ask_amount","ask_price","bid_price","bid_amount"]
[1772091902178,3.01123368,87.46,87.424,3.61564933]
[1772091903081,3.01123368,87.46,87.365,34.31]
[1772091903082,3.01123368,87.47,87.426,3.61564933]
[1772091903878,3.01123368,87.47,87.432,3.61564933]
[1772091905083,3.01123368,87.49,87.434,3.61564933]
[1772091905279,3.01123368,87.49,87.441,3.61564933]
[1772091905584,6.87898937,87.49,87.441,3.61564933]
[1772091906181,3.86775569,87.49,87.447,3.61564933]
[1772091907485,6.87898937,87.49,87.447,3.61564933]
[1772091908884,6.87898937,87.49,87.449,3.61564933]
[1772091909779,3.86775569,87.49,87.449,3.61564933]
[1772091910084,3.86775569,87.479,87.435,3.61564933]
[1772091911788,10.65109701,87.517,87.423,21.28730787]
[1772091911789,3.86775569,87.469,87.423,3.61564933]
[1772091912087,3.86775569,87.469,87.431,3.61564933]
[1772091913781,14.11074149,87.518,87.391,28.46197027]
[1772091913782,3.01123368,87.49,87.44,3.01123368]
[1772091913989,3.01123368,87.49,87.441,3.61564933]
[1772091913990,3.86775569,87.489,87.441,3.61564933]
[1772091914883,3.86775569,87.489,87.443,13.90764933]
[1772091915082,3.86775569,87.489,87.444,3.61564933]
[1772091915283,3.86775569,87.479,87.444,3.61564933]
[1772091917489,8.40373992,87.516,87.444,3.61564933]
[1772091917490,3.86775569,87.489,87.444,3.61564933]
[1772091917690,3.86775569,87.489,87.43,3.01123368]
[1772091917691,3.86775569,87.489,87.446,3.61564933]
[1772091918190,3.86775569,87.499,87.46,3.61564933]
[1772091919892,3.86775569,87.499,87.461,10.2899]
[1772091920090,3.86775569,87.499,87.462,3.61564933]
[1772091921084,3.86775569,87.499,87.464,10.2895]
[1772091921285,310.69589804,87.52,87.465,3.61564933]
[1772091921593,3.86775569,87.519,87.465,3.61564933]
[1772091921788,3.86775569,87.509,87.466,10.2893]
[1772091921994,3.86775569,87.489,87.45,3.61564933]
[1772091922188,8.39649322,87.519,87.45,3.61564933]
[1772091922495,3.01123368,87.5,87.45,3.61564933]
[1772091923194,3.01123368,87.5,87.451,3.61564933]
[1772091923396,10.2839,87.513,87.456,10.2905]
[1772091923588,3.01123368,87.49,87.456,10.2905]
[1772091926198,1.71664549,87.491,87.456,10.2905]
[1772091928100,1.71664549,87.491,87.456,14.15489038]
[1772091928899,1.71664549,87.491,87.457,3.86439038]
[1772091929400,1.71664549,87.491,87.458,14.15459038]
[1772091931803,1.71664549,87.491,87.459,3.86439038]
[1772091937004,10.2839,87.513,87.458,10.2902]
[1772091937005,1.71620157,87.489,87.458,10.2902]
[1772091940404,3.00983272,87.48,87.449,3.86439038]
[1772091943010,1.71620157,87.489,87.449,3.86439038]
[1772091947202,3.00983272,87.48,87.428,3.86439038]
[1772091947401,4.72603429,87.46,87.428,3.86439038]
[1772091947601,3.00983272,87.45,87.416,3.86439038]
[1772091949502,1.71620157,87.439,87.384,21.28730787]
[1772091949704,3.00983272,87.42,87.383,3.86439038]
[1772091950113,3.00983272,87.42,87.387,3.86439038]
[1772091952011,1.71620157,87.429,87.387,3.86439038]
[1772091953911,1.71620157,87.429,87.388,14.16279038]
[1772091954116,1.71620157,87.429,87.389,3.70980863]
[1772091955712,1.71620157,87.429,87.39,10.2982]
[1772091956011,3.00983272,87.44,87.391,3.70980863]
[1772091956512,3.00983272,87.44,87.395,3.84124444]
[1772091958113,3.00983272,87.44,87.394,10.2978]
[1772091958114,3.00983272,87.44,87.397,3.84124444]
[1772091958806,1.7210388,87.452,87.397,3.84124444]
[1772091959015,1.7210388,87.469,87.428,3.84124444]
[1772091959212,1.7210388,87.469,87.366,160.2393]
[1772091959213,1.7210388,87.459,87.411,3.84124444]
[1772091960310,1.7210388,87.459,87.357,34.31]
[1772091960311,1.7210388,87.459,87.413,3.84124444]
[1772091961518,1.7210388,87.459,87.42,3.84124444]
[1772091963113,4.73087152,87.44,87.402,3.84124444]
[1772091967621,3.00983272,87.43,87.402,3.84124444]
[1772091970319,4.73087152,87.45,87.404,3.84124444]
[1772091970526,1.7210388,87.449,87.404,3.84124444]
[1772091970826,3.00983272,87.44,87.404,3.84124444]
[1772091971025,1.7210388,87.449,87.408,3.84124444]
[1772091971322,3.00983272,87.45,87.408,3.84124444]
[1772091971522,1.7210388,87.449,87.408,3.84124444]
[1772091973129,1.7210388,87.439,87.401,10.297]
[1772091975030,1.7210388,87.439,87.402,3.84124444]
[1772091977328,1.7210388,87.439,87.349,20.6061]
[1772091977329,3.00983272,87.42,87.374,3.84124444]
[1772091977536,3.00983272,87.43,87.374,3.84124444]
[1772091977831,3.00983272,87.43,87.349,20.6061]
[1772091977832,3.00983272,87.43,87.381,3.84124444]
[1772091978529,3.00983272,87.44,87.4,3.84124444]
[1772091978735,3.00983272,87.45,87.401,3.84124444]
[1772091979835,3.00983272,87.45,87.41,10.2959]
[1772091980827,3.00983272,87.45,87.412,14.13684444]
[1772091981827,3.00983272,87.45,87.416,3.84124444]
[1772091982035,3.00983272,87.46,87.416,3.84124444]
[1772091982234,4.73087152,87.46,87.416,3.84124444]
[1772091982435,3.00983272,87.45,87.416,3.84124444]
[1772091982628,3.00983272,87.45,87.417,10.2951]
[1772091982831,3.00983272,87.45,87.417,14.13634444]
[1772091983131,3.00983272,87.45,87.371,21.28730787]
[1772091983132,3.00983272,87.47,87.429,3.84124444]
[1772091983628,4.73087152,87.47,87.429,3.84124444]
[1772091984431,3.00983272,87.46,87.429,14.13494444]
[1772091985336,1.7210388,87.469,87.43,3.84124444]
[1772091988031,1.7210388,87.469,87.375,20.6001]
[1772091988032,1.72035386,87.439,87.381,3.64571889]
[1772091988235,5.14574902,87.48,87.381,3.64571889]
[1772091988236,3.00983272,87.42,87.381,3.64571889]
[1772091988437,3.00983272,87.41,87.366,3.64571889]
[1772091988637,3.00983272,87.4,87.366,3.64571889]
[1772091989132,3.00983272,87.41,87.368,3.64571889]
[1772091989930,3.00983272,87.41,87.373,10.3002]
[1772091991340,3.00983272,87.42,87.377,3.64571889]
[1772091992840,10.2925,87.439,87.367,3.64571889]
[1772091992841,3.00983272,87.41,87.367,3.64571889]
[1772091995233,3.01614564,87.41,87.367,3.64571889]
[1772091996638,3.01614564,87.41,87.368,10.3009]
[1772091996936,3.01614564,87.41,87.307,34.31]
[1772091996937,3.01614564,87.39,87.341,3.86389507]
[1772091997743,4.74316545,87.39,87.341,3.86389507]
[1772091998148,3.01614564,87.38,87.341,3.86389507]
[1772091998342,3.01614564,87.37,87.341,3.86389507]
[1772091999139,3.01614564,87.38,87.341,3.86389507]
[1772092005753,34.31,87.437,87.324,3.86389507]
[1772092005754,3.01614564,87.36,87.324,3.86389507]
[1772092007258,1.72701981,87.369,87.324,3.86389507]
[1772092007651,1.72701981,87.369,87.325,10.3059]
[1772092007853,1.72701981,87.369,87.326,3.86389507]
[1772092008453,1.72706545,87.408,87.33,3.01614564]
[1772092008653,1.72706545,87.408,87.278,160.4005]
[1772092008654,3.01614564,87.4,87.351,3.86389507]
[1772092009064,1.72706545,87.408,87.361,3.86389507]
[1772092009953,1.72706545,87.408,87.367,3.86389507]
[1772092010155,3.01614564,87.43,87.381,3.86389507]
[1772092010760,1.72706545,87.434,87.387,3.86389507]
[1772092011064,3.01614564,87.44,87.387,3.86389507]
[1772092011256,3.01614564,87.43,87.387,3.86389507]
[1772092012260,8.35732417,87.485,87.33,160.3049]
[1772092012261,3.01614564,87.41,87.369,3.86389507]
[1772092012864,3.01614564,87.41,87.369,14.16469507]
[1772092013461,10.63932122,87.473,87.317,55.62695652]
[1772092013462,3.01614564,87.4,87.356,3.86389507]
[1772092013656,1.72706545,87.399,87.356,3.86389507]
[1772092014457,3.01614564,87.4,87.358,3.86389507]
[1772092015564,3.01614564,87.4,87.36,10.3018]
[1772092015867,3.01614564,87.4,87.361,3.86389507]
[1772092020363,3.01614564,87.38,87.331,3.74999598]
[1772092020559,3.01614564,87.36,87.331,3.74999598]
[1772092021468,3.01614564,87.38,87.335,3.74999598]
[1772092021872,3.01614564,87.39,87.335,3.74999598]
[1772092022068,3.01614564,87.39,87.347,3.74999598]
[1772092022568,3.01614564,87.38,87.347,3.74999598]
[1772092023170,3.01614564,87.4,87.347,3.74999598]
[1772092023466,14.11074149,87.46,87.292,1.99207178]
[1772092023467,3.01614564,87.43,87.38,3.01614564]
[1772092023668,3.01614564,87.44,87.391,3.74999598]
[1772092025373,3.01614564,87.44,87.393,3.74999598]
[1772092026368,3.01614564,87.44,87.39,3.01614564]
[1772092026369,3.01614564,87.45,87.406,14.04629598]
[1772092026567,3.01614564,87.45,87.407,3.74999598]
[1772092027269,3.01614564,87.47,87.411,3.74999598]
[1772092027469,3.01614564,87.47,87.421,3.74999598]
[1772092028266,3.01614564,87.48,87.425,3.74999598]
[1772092028463,3.01614564,87.48,87.431,3.74999598]
[1772092028669,9.13133328,87.52,87.431,3.74999598]
[1772092028670,1.72020147,87.501,87.431,3.74999598]
[1772092028870,3.01614564,87.49,87.441,3.74999598]
[1772092029680,3.01614564,87.49,87.444,10.2919]
[1772092030372,3.01614564,87.49,87.444,14.04189598]
[1772092031274,1.72020147,87.501,87.444,3.74999598]
[1772092031471,1.72020147,87.489,87.411,3.74999598]
[1772092031977,1.72020147,87.475,87.413,3.74999598]
[1772092032875,1.72020147,87.475,87.416,3.74999598]
[1772092035968,1.72020147,87.473,87.416,3.74999598]
[1772092037279,1.72020147,87.473,87.42,3.74999598]
[1772092038574,1.72020147,87.473,87.411,10.2957]
[1772092038774,1.72020147,87.473,87.412,3.74999598]
[1772092039279,1.72020147,87.469,87.412,3.74999598]
[1772092039773,1.72020147,87.467,87.412,3.74999598]
[1772092040082,1.72020147,87.482,87.413,3.74999598]
[1772092040385,1.72020147,87.48,87.413,3.74999598]
[1772092040674,1.72020147,87.48,87.428,10.2937]
[1772092040874,1.72020147,87.48,87.428,14.04369598]
[1772092041981,1.72020147,87.48,87.428,3.74999598]
[1772092042578,1.72020147,87.48,87.429,3.74999598]
[1772092043574,10.52157328,87.531,87.37,8.06456104]
[1772092043575,1.72020147,87.492,87.431,3.74999598]
[1772092044172,1.72020147,87.492,87.443,3.74999598]
[1772092044376,1.72020147,87.504,87.443,3.74999598]
[1772092045879,1.71194039,87.501,87.443,3.74999598]
[1772092046979,1.71194039,87.501,87.445,3.57786337]
[1772092047374,1.71194039,87.497,87.445,3.57786337]
[1772092047578,1.71194039,87.497,87.435,3.57786337]
[1772092048083,1.71194039,87.495,87.438,3.57786337]
[1772092048782,1.71194039,87.493,87.438,3.57786337]
[1772092048983,1.71194039,87.489,87.438,3.57786337]
[1772092050082,1.71194039,87.503,87.442,3.57786337]
[1772092050978,1.71194039,87.503,87.445,3.57786337]
[1772092052486,1.71194039,87.496,87.445,3.57786337]
[1772092053884,1.7134935,87.494,87.445,3.57786337]
[1772092055386,3.01081974,87.5,87.445,3.57786337]
[1772092056081,3.01081974,87.5,87.447,3.53100376]
[1772092056283,3.01081974,87.5,87.451,3.53100376]
[1772092057978,3.01081974,87.5,87.453,3.53100376]
[1772092058689,3.01081974,87.5,87.455,3.53100376]
[1772092059382,3.01081974,87.49,87.455,3.53100376]
[1772092061181,1.7134935,87.499,87.393,34.31]
[1772092061182,1.7134935,87.499,87.441,3.53100376]
[1772092061583,1.7134935,87.489,87.411,3.53100376]
[1772092061796,1.7134935,87.487,87.411,3.53100376]
[1772092062993,1.7134935,87.485,87.425,3.53100376]
[1772092064098,1.7134935,87.483,87.425,3.53100376]
[1772092065987,1.7134935,87.481,87.425,3.53100376]
[1772092066993,1.7134935,87.477,87.425,3.53100376]
[1772092068494,8.06484317,87.49,87.425,3.53100376]
[1772092068495,1.7134935,87.475,87.425,3.53100376]
[1772092071208,9.10447679,87.482,87.43,3.53100376]
[1772092071407,9.10447679,87.481,87.43,3.53100376]
[1772092071603,9.10447679,87.48,87.43,3.53100376]
[1772092071809,9.10447679,87.479,87.43,3.53100376]
[1772092072111,9.10447679,87.478,87.43,3.53100376]
[1772092072305,9.10447679,87.477,87.433,3.53100376]
[1772092072610,9.10447679,87.48,87.433,3.53100376]
[1772092072908,9.10447679,87.479,87.433,3.53100376]
[1772092073109,9.10447679,87.489,87.437,3.53100376]
[1772092073302,9.10447679,87.488,87.437,3.53100376]
[1772092073503,9.10447679,87.487,87.437,3.53100376]
[1772092073705,9.10447679,87.493,87.437,3.53100376]
[1772092073905,9.10447679,87.492,87.442,10.2921]
[1772092074105,9.10447679,87.491,87.443,3.53100376]
[1772092074305,10.5192875,87.518,87.391,20.5964]
[1772092074306,1.7134935,87.489,87.43,3.53100376]
[1772092074512,1.7134935,87.487,87.433,10.2932]
[1772092074811,8.06484317,87.49,87.43,3.53100376]
[1772092074812,1.7134935,87.483,87.43,3.53100376]
[1772092075004,1.7134935,87.481,87.43,3.53100376]
[1772092075203,1.7134935,87.479,87.43,3.53100376]
[1772092075405,1.7134935,87.477,87.43,3.53100376]
[1772092075613,1.7134935,87.475,87.43,3.53100376]
[1772092081319,3.01182882,87.47,87.43,3.53100376]
[1772092083812,1.7134935,87.475,87.43,3.53100376]
[1772092085026,3.01182882,87.48,87.433,3.85479531]
[1772092085224,1.71125347,87.489,87.433,3.85479531]
[1772092085424,10.81573026,87.489,87.433,3.85479531]
[1772092086021,10.81573026,87.488,87.444,3.85479531]
[1772092086321,3.01182882,87.48,87.444,3.85479531]
[1772092088027,1.71125347,87.479,87.43,3.85479531]
[1772092090023,1.71125347,87.479,87.432,3.85479531]
[1772092090220,9.10447679,87.486,87.432,3.85479531]
[1772092090524,3.01182882,87.48,87.443,3.85479531]
[1772092092724,1.71125347,87.494,87.445,3.85479531]
[1772092093029,3.01182882,87.48,87.445,3.85479531]
[1772092095222,8.47348328,87.51,87.391,20.5964]
[1772092095223,3.01182882,87.5,87.448,3.85479531]
[1772092096524,12.13675585,87.5,87.448,3.85479531]
[1772092096725,3.01182882,87.5,87.448,3.85479531]
[1772092096924,3.01182882,87.5,87.458,3.85479531]
[1772092099227,3.01182882,87.49,87.458,3.85479531]
[1772092099429,3.01182882,87.49,87.396,28.46197027]
[1772092099430,3.01182882,87.48,87.446,3.85479531]
[1772092099624,1.71125347,87.489,87.446,3.85479531]
[1772092099825,3.01182882,87.49,87.446,3.85479531]
[1772092101027,9.12492703,87.525,87.461,3.85479531]
[1772092101331,9.12492703,87.525,87.419,160.1429]
[1772092101332,3.01182882,87.52,87.471,3.85479531]
[1772092102133,3.01182882,87.52,87.472,3.85479531]
[1772092103931,1.71125347,87.519,87.477,3.85479531]
[1772092104132,3.01182882,87.51,87.477,3.85479531]
[1772092106529,1.71125347,87.519,87.477,3.85479531]
[1772092106931,1.71125347,87.519,87.479,3.72657214]
[1772092108532,3.01182882,87.51,87.479,3.72657214]
[1772092110038,3.01182882,87.52,87.479,3.72657214]
[1772092112837,3.01182882,87.52,87.482,3.72657214]
[1772092114934,3.01182882,87.53,87.493,3.59573419]
[1772092116144,3.01182882,87.53,87.48,3.01182882]
[1772092116145,3.01182882,87.53,87.495,3.59573419]
[1772092117344,3.00789286,87.53,87.495,3.59573419]
[1772092119545,3.00789286,87.52,87.495,3.59573419]
[1772092122944,3.00789286,87.51,87.478,3.59573419]
[1772092129752,1.70722757,87.519,87.481,3.59573419]
[1772092129953,3.00789286,87.52,87.481,3.59573419]
[1772092141765,9.12492703,87.532,87.481,3.59573419]
[1772092141961,3.00789286,87.52,87.481,3.59573419]
[1772092144865,3.00789286,87.5,87.47,3.78182839]
[1772092149471,1.70743398,87.534,87.48,3.78182839]
[1772092149671,3.00789286,87.53,87.48,3.78182839]
[1772092149873,3.00789286,87.52,87.48,3.78182839]
[1772092150371,3.00789286,87.52,87.485,3.78182839]
[1772092150573,1.70743398,87.528,87.485,3.78182839]
[1772092151677,3.00789286,87.53,87.489,3.78182839]
[1772092152966,3.00789286,87.53,87.494,10.286]
[1772092154475,3.00789286,87.52,87.483,10.2873]
[1772092154874,3.00789286,87.52,87.484,3.78182839]
[1772092156578,3.00789286,87.51,87.484,3.78182839]
[1772092156971,9.286e-05,87.5,87.472,10.2886]
[1772092157170,9.286e-05,87.5,87.451,21.31695652]
[1772092157171,4.71532684,87.51,87.473,3.78182839]
[1772092158677,3.00789286,87.5,87.451,3.78182839]
[1772092159378,3.00789286,87.5,87.474,10.2884]
[1772092160174,1.70743398,87.509,87.474,10.2884]
[1772092161276,3.00789286,87.5,87.474,10.2884]
[1772092163479,3.00789286,87.5,87.427,28.46197027]
[1772092163480,3.00789286,87.52,87.477,3.78182839]
[1772092163680,3.00789286,87.53,87.477,3.78182839]
[1772092163978,9.11971921,87.529,87.477,3.78182839]
[1772092164178,9.11971921,87.528,87.477,3.78182839]
[1772092164379,3.00789286,87.53,87.477,3.78182839]
[1772092164577,3.00789286,87.52,87.481,10.2875]
[1772092164980,3.00789286,87.52,87.481,14.06932839]
[1772092165175,3.00789286,87.52,87.482,3.78182839]
[1772092165779,1.71032851,87.519,87.471,10.2887]
[1772092166086,4.71822137,87.51,87.471,10.2887]
[1772092166585,4.71822137,87.51,87.472,3.63107338]
[1772092168088,1.71032851,87.509,87.472,3.63107338]
[1772092168782,4.71822137,87.5,87.462,10.2898]
[1772092169684,1.71032851,87.499,87.453,3.63107338]
[1772092169884,8.40483541,87.532,87.453,3.63107338]
[1772092169885,3.00789286,87.48,87.453,3.63107338]
[1772092170093,3.00789286,87.48,87.433,3.63107338]
[1772092170386,3.00789286,87.48,87.443,3.63107338]
[1772092171281,1.71032851,87.479,87.435,10.2929]
[1772092171987,3.00789286,87.47,87.431,3.63107338]
[1772092172184,1.71032851,87.469,87.431,3.63107338]
[1772092172485,1.71032851,87.469,87.392,28.46197027]
[1772092172486,3.00789286,87.45,87.419,3.63107338]
[1772092172885,1.71032851,87.459,87.419,3.63107338]
[1772092173088,3.00789286,87.48,87.421,3.63107338]
[1772092173983,3.00789286,87.48,87.435,3.85828298]
[1772092174183,1.71850302,87.479,87.435,3.85828298]
[1772092175197,1.71850302,87.492,87.435,3.85828298]
[1772092175382,3.00789286,87.49,87.435,3.85828298]
[1772092175690,3.00789286,87.48,87.435,3.85828298]
[1772092176892,3.00789286,87.48,87.437,3.85828298]
[1772092177296,3.00994338,87.5,87.441,3.85828298]
[1772092177484,1.71850302,87.518,87.451,3.85828298]
[1772092177485,3.00994338,87.51,87.451,3.85828298]
[1772092177685,3.00994338,87.51,87.462,3.85828298]
[1772092181391,3.00994338,87.51,87.464,3.85828298]
[1772092186388,3.00994338,87.51,87.45,3.00994338]
[1772092186389,3.00994338,87.51,87.467,3.85828298]
[1772092186884,3.00994338,87.51,87.471,3.85828298]
[1772092187081,3.00994338,87.52,87.471,3.85828298]
[1772092187482,3.00994338,87.53,87.471,3.85828298]
[1772092187891,3.00994338,87.52,87.471,3.85828298]
[1772092188891,3.00994338,87.52,87.486,3.85828298]
[1772092189586,1.71850302,87.544,87.486,3.85828298]
[1772092189794,1.71850302,87.544,87.43,34.31]
[1772092189795,3.00994338,87.53,87.489,3.85828298]
[1772092190395,3.00994338,87.53,87.495,3.85828298]
[1772092192194,3.00994338,87.52,87.485,3.85828298]
[1772092194197,3.00994338,87.52,87.47,3.00994338]
[1772092194198,3.00994338,87.52,87.487,3.85828298]
[1772092194398,1.71850302,87.529,87.487,3.85828298]
[1772092194791,3.00994338,87.54,87.49,3.00994338]
[1772092194988,3.00994338,87.55,87.501,3.85828298]
[1772092196297,4.72072745,87.55,87.501,3.85828298]
[1772092196498,1.71078407,87.549,87.501,3.85828298]
[1772092196900,1.71078407,87.549,87.506,10.2846]
[1772092197093,1.71078407,87.549,87.501,3.85828298]
[1772092197094,3.00994338,87.54,87.501,3.85828298]
[1772092199199,1.71078407,87.539,87.488,3.87787512]
[1772092199501,1.71078407,87.529,87.488,3.87787512]
[1772092199999,3.00994338,87.53,87.488,3.87787512]
[1772092200995,3.00994338,87.53,87.49,3.87787512]
[1772092204402,1.71078407,87.539,87.494,3.87787512]
[1772092204606,3.00994338,87.55,87.494,3.87787512]
[1772092204905,4.72072745,87.55,87.501,3.87787512]
[1772092205299,3.00994338,87.57,87.515,3.87787512]
[1772092205505,3.00994338,87.57,87.521,3.87787512]
[1772092206206,4.72072745,87.57,87.527,3.87787512]
[1772092207408,3.00994338,87.56,87.527,3.87787512]
[1772092210506,3.00994338,87.55,87.527,3.87787512]
[1772092211110,3.00994338,87.56,87.527,3.87787512]
[1772092211311,4.72072745,87.57,87.527,3.87787512]
[1772092211809,3.00994338,87.56,87.527,3.87787512]
[1772092213207,1.71078407,87.57,87.527,3.87787512]
[1772092213208,3.00994338,87.55,87.527,3.87787512]
[1772092213610,226.55772291,87.574,87.501,3.87787512]
[1772092213611,3.00994338,87.54,87.501,3.87787512]
[1772092214608,3.00994338,87.53,87.501,3.87787512]
[1772092216514,3.00994338,87.54,87.501,3.87787512]
[1772092219216,3.00994338,87.53,87.486,3.87787512]
[1772092219516,3.00994338,87.52,87.486,3.87787512]
[1772092220220,3.00994338,87.52,87.488,3.87787512]
[1772092220418,3.00994338,87.53,87.488,3.87787512]
[1772092221916,3.00994338,87.53,87.492,3.87787512]
[1772092222923,3.00994338,87.53,87.496,10.2858]
[1772092224421,1.71078407,87.529,87.485,10.287]
[1772092224720,1.71078407,87.529,87.486,3.87787512]
[1772092225423,3.00994338,87.52,87.486,3.87787512]
[1772092230025,3.00994338,87.52,87.488,3.79062293]
[1772092233029,3.00994338,87.52,87.491,3.79062293]
[1772092235136,1.7142065,87.541,87.494,3.80143794]
[1772092235336,3.00994338,87.53,87.494,3.80143794]
[1772092236037,3.00994338,87.53,87.499,3.80143794]
[1772092236331,3.00994338,87.55,87.501,3.80143794]
[1772092236636,1.7142065,87.553,87.501,3.80143794]
[1772092236831,3.00994338,87.55,87.501,3.80143794]
[1772092237536,3.00994338,87.56,87.523,14.08403794]
[1772092239247,3.0065433,87.55,87.505,3.80143794]
[1772092239741,1.7142065,87.559,87.517,3.80143794]
[1772092240137,3.0065433,87.56,87.525,3.80143794]
[1772092240736,3.0065433,87.56,87.531,14.08313794]
[1772092241342,3.0065433,87.56,87.532,3.80143794]
[1772092241744,3.0065433,87.57,87.534,3.80143794]
[1772092242444,1.7142065,87.572,87.534,3.80143794]
[1772092242445,3.0065433,87.56,87.534,3.80143794]
[1772092243235,3.0065433,87.56,87.523,14.08403794]
[1772092243439,3.0065433,87.55,87.524,3.80143794]
[1772092243848,3.0065433,87.56,87.524,3.80143794]
[1772092244050,4.7207498,87.56,87.524,3.80143794]
[1772092245854,20.5421,87.623,87.499,3.80143794]
[1772092245855,3.0065433,87.54,87.499,3.80143794]
[1772092247558,1.7142065,87.549,87.502,3.80143794]
[1772092248355,1.7142065,87.549,87.511,3.80143794]
[1772092249861,3.0065433,87.54,87.511,3.80143794]
[1772092250052,3.0065433,87.54,87.499,3.80143794]
[1772092250252,4.7207498,87.54,87.499,3.80143794]
[1772092250662,1.7142065,87.539,87.499,3.80143794]
[1772092250960,1.7142065,87.539,87.5,10.2853]
[1772092252052,1.7142065,87.539,87.5,14.08673794]
[1772092252261,1.7142065,87.539,87.43,35.57551149]
[1772092252262,3.0065433,87.52,87.488,3.80143794]
[1772092257369,3.0065433,87.51,87.481,10.2875]
[1772092257673,3.0065433,87.51,87.44,28.46197027]
[1772092257674,3.0065433,87.49,87.449,3.67928734]
[1772092257864,3.0065433,87.48,87.449,3.67928734]
[1772092258664,3.0065433,87.47,87.435,3.67928734]
[1772092258869,4.33e-05,87.46,87.435,3.67928734]
[1772092259367,3.0065433,87.47,87.435,3.67928734]
[1772092259963,3.0065433,87.47,87.436,10.2928]
[1772092261466,1.70849784,87.479,87.44,3.67928734]
[1772092261863,3.0065433,87.48,87.44,3.67928734]
[1772092262063,1.70849784,87.491,87.443,3.67928734]
[1772092262269,3.0065433,87.49,87.443,3.67928734]
[1772092263879,1.70849784,87.469,87.429,10.2937]
[1772092264070,1.70849784,87.469,87.43,3.67928734]
[1772092264669,3.0065433,87.46,87.43,3.67928734]
[1772092264968,1.70849784,87.469,87.43,3.67928734]
[1772092265977,1.70849784,87.469,87.431,10.2934]
[1772092266176,3.0065433,87.46,87.431,10.2934]
[1772092267074,1.70849784,87.469,87.431,10.2934]
[1772092267466,1.70849784,87.469,87.381,20.5986]
[1772092267467,3.0065433,87.44,87.399,3.67928734]
[1772092267972,5.14425932,87.49,87.39,3.67928734]
[1772092267973,3.0065433,87.43,87.39,3.67928734]
[1772092268173,1.70849784,87.446,87.391,3.67928734]
[1772092268174,3.0065433,87.44,87.391,3.67928734]
[1772092268672,3.0065433,87.45,87.396,3.67928734]
[1772092268872,3.0065433,87.45,87.401,3.67928734]
[1772092269466,1.70849784,87.449,87.401,3.67928734]
[1772092269667,3.0065433,87.44,87.401,3.67928734]
[1772092269874,3.0065433,87.42,87.385,3.67928734]
[1772092270075,1.70849784,87.419,87.371,3.67928734]
[1772092270271,19.65829947,87.506,87.371,3.67928734]
[1772092270272,3.0065433,87.43,87.371,3.67928734]
[1772092270468,1.70849784,87.454,87.391,3.67928734]
[1772092270674,3.0065433,87.44,87.391,3.67928734]
[1772092270879,3.0065433,87.45,87.391,3.67928734]
[1772092271272,3.0065433,87.44,87.391,3.67928734]
[1772092271876,3.0065433,87.45,87.393,3.67928734]
[1772092272076,3.0065433,87.45,87.401,3.67928734]
[1772092272468,4.71504114,87.45,87.401,3.67928734]
[1772092272673,3.0065433,87.44,87.401,3.67928734]
[1772092272873,1.70849784,87.449,87.401,3.67928734]
[1772092273979,5.14667368,87.48,87.411,3.67928734]
[1772092274282,1.70849784,87.479,87.421,3.67928734]
[1772092274576,1.70849784,87.479,87.43,3.0065433]
[1772092274769,1.70849784,87.469,87.421,3.67928734]
[1772092276179,1.70849784,87.469,87.424,3.67928734]
[1772092277677,1.70849784,87.469,87.427,3.67928734]
[1772092278077,3.0065433,87.47,87.427,3.67928734]
[1772092278977,3.0065433,87.47,87.428,3.67928734]
[1772092280779,1.70849784,87.483,87.431,3.67928734]
[1772092280981,1.70849784,87.479,87.431,3.67928734]
[1772092281380,3.0065433,87.47,87.431,3.67928734]
[1772092281575,1.70849784,87.469,87.411,3.67928734]
[1772092281874,3.0065433,87.46,87.411,3.67928734]
[1772092282079,1.70849784,87.439,87.398,3.67928734]
[1772092282281,1.70849784,87.439,87.38,3.0065433]
[1772092282282,3.0065433,87.43,87.383,3.67928734]
[1772092282477,3.0065433,87.41,87.383,3.67928734]
[1772092283082,1.70849784,87.426,87.383,3.67928734]
[1772092283285,3.0065433,87.42,87.374,10.3002]
[1772092283882,3.0065433,87.41,87.374,10.3002]
[1772092284080,3.0065433,87.41,87.369,3.67928734]
[1772092284482,1.70849784,87.419,87.369,3.67928734]
[1772092284687,1.70849784,87.419,87.371,3.67928734]
[1772092284990,1.70849784,87.409,87.332,3.67928734]
[1772092285187,3.0065433,87.39,87.35,10.3029]
[1772092285487,1.70849784,87.399,87.35,10.3029]
[1772092286382,1.70849784,87.399,87.352,14.03599167]
[1772092286582,3.0065433,87.41,87.353,3.73329167]
[1772092286789,3.0065433,87.41,87.361,3.73329167]
[1772092287181,3.0065433,87.41,87.365,3.73329167]
[1772092287382,1.71469372,87.429,87.381,3.73329167]
[1772092288189,1.71469372,87.429,87.39,3.0065433]
[1772092288392,1.71469372,87.429,87.382,3.73329167]
[1772092289894,1.71469372,87.429,87.386,3.73329167]
[1772092290096,8.37365106,87.492,87.391,3.73329167]
[1772092290097,1.71469372,87.444,87.391,3.73329167]
[1772092290491,1.71469372,87.444,87.393,10.2979]
[1772092290692,1.71469372,87.444,87.393,14.03119167]
[1772092291195,1.71469372,87.444,87.394,3.73329167]
[1772092291795,1.71469372,87.444,87.396,3.73329167]